Cogmind - Beta 16 @@@ ROGUE MODE // 2025.10.24 @ 21:59:33 Player: C0-2MO Result: Destroyed by Lightning with EMDS Performance ------------- Evolutions (4) 2000 Regions Visited (16) 3200 Robots Destroyed (101) 505 Value Destroyed (4771) 4771 Prototype IDs (55) 1100 Alien Tech Used (0) 0 Bonus (4059) 4059 TOTAL SCORE: 15635 Bonus ------- High Alert Combat Kills 310 Follower Combat Kills 1714 Entered Garrisons 200 Network Hubs Disabled 600 Aligned with FarCom 300 Built Enhanced Grunts 300 A7 Reached Mainframe 300 Met R17 at Cetus 500 Friendly Fire -165 Cogmind --------- Core Integrity 0/850 Matter 86/300 Energy 24/100 System Corruption 27% Temperature Cool (0) Movement Core (50) Location -6/Hub_04(d) Parts ------- > --- POWER (2) -------- (None) > --- PROPULSION (4) --- (None) > --- UTILITY (6) ------ (None) > --- WEAPON (3) ------- (None) > --- INVENTORY (5) ---- Improved Deuterium Engine Improved Cesium-ion Thruster Improved Hacking Suite Thermic Laser Guided Plasma Cannon Peak State ------------ > --- POWER ------------ Quantum Reactor Quantum Reactor > --- PROPULSION ------- Centrium Heavy Treads Centrium Heavy Treads > --- UTILITY ---------- Improved Cooling System High-capacity Storage Unit Centrium Medium Armor Plating Improved Hacking Suite Improved Hacking Suite Improved System Restoration Module > --- WEAPON ----------- Gatling Laser Compact Ion Cannon Neutron Cannon > --- INVENTORY -------- Improved Deuterium Engine Light Angular Momentum Engine Centrium Heavy Treads Improved Cesium-ion Thruster Improved Cesium-ion Thruster Improved Cesium-ion Thruster Improved Cesium-ion Thruster Nuclear Pulse Thruster Advanced ECM Suite Improved Hacking Suite Improved Hacking Suite Thermic Laser Plasma Cannon Guided Plasma Cannon Improved Grenade Launcher CPS Tube Power Maul Chainsword [Rating: 109] Favorites ----------- Power Light Ion Engine Engine Light Ion Engine Power Core Light Nuclear Core Reactor Quantum Reactor Propulsion Flight Unit Treads Centrium Heavy Treads Wheel Armored Huge Wheel Flight Unit Flight Unit Utility Hacking Suite Device Improved Cooling System Storage Medium Storage Unit Processor Improved Targeting Computer Hackware Hacking Suite Protection Centrium Medium Armor Plating Weapon Gatling Laser Energy Gun Gatling Laser Energy Cannon Neutron Cannon Ballistic Gun Assault Rifle Launcher Improved Grenade Launcher Special Weapon Mining Laser Impact Weapon Power Maul Slashing Weapon Chainsword Special Melee Weapon Datajack Build | -11 -10 -10 -9 -9 -9 -8 -8 -8 -8 -8 -8 -6 -6 -6 -6 -6 ------- Run | Yrd Mat Min Mat Min Exi Min Mat Sto Gar Rec Scr Fac Ext Cet Arc Hub Slots Evolved 8 | . . . 2 . . . 2 . . . . 4 . . . . Power 1 | . . . . . . . . . . . . 1 . . . . Propulsion 2 | . . . 2 . . . . . . . . . . . . . Utility 4 | . . . . . . . 2 . . . . 2 . . . . Weapon 1 | . . . . . . . . . . . . 1 . . . . Parts Attached 132 | 7 6 3 11 5 . . 9 10 7 . . 32 14 9 9 10 Power 15 | 1 . . 1 . . . 1 1 1 . . 2 5 2 1 . Engine 10 | 1 . . 1 . . . 1 . 1 . . 2 3 1 . . Core 3 | . . . . . . . . 1 . . . . 2 . . . Reactor 2 | . . . . . . . . . . . . . . 1 1 . Propulsion 42 | 2 2 1 6 5 . . 2 5 3 . . 8 4 2 1 1 Treads 9 | 1 1 . . . . . . . . . . . 4 2 1 . Leg . | . . . . . . . . . . . . . . . . . Wheel 5 | 1 1 1 . . . . . . . . . 2 . . . . Hover . | . . . . . . . . . . . . . . . . . Flight 28 | . . . 6 5 . . 2 5 3 . . 6 . . . 1 Utility 36 | 2 1 . 2 . . . 2 1 1 . . 12 4 1 5 5 Device 13 | 1 . . . . . . . . . . . 4 1 . 4 3 Storage 7 | 1 1 . 1 . . . . . . . . 2 1 . . 1 Processor 1 | . . . . . . . . . . . . 1 . . . . Hackware 9 | . . . 1 . . . 1 . 1 . . 4 . . 1 1 Protection 6 | . . . . . . . 1 1 . . . 1 2 1 . . Artifact . | . . . . . . . . . . . . . . . . . Weapon 39 | 2 3 2 2 . . . 4 3 2 . . 10 1 4 2 4 Energy Gun 10 | . . . . . . . . 1 . . . 5 1 3 . . Energy Cannon 5 | . . . . . . . . 1 1 . . . . . . 3 Ballistic Gun 8 | 2 . 2 2 . . . . 1 . . . . . 1 . . Ballistic Cannon . | . . . . . . . . . . . . . . . . . Launcher 3 | . 1 . . . . . . . 1 . . . . . . 1 Special Weapon 4 | . 1 . . . . . . . . . . 3 . . . . Impact Weapon 3 | . . . . . . . 2 . . . . 1 . . . . Slashing Weapon 4 | . . . . . . . 2 . . . . 1 . . 1 . Piercing Weapon . | . . . . . . . . . . . . . . . . . Special Melee Weapon 2 | . 1 . . . . . . . . . . . . . 1 . Unidentified Prototypes 11 | . . . . . . . . 4 . . . . . 4 . 3 Corrupted Parts 3 | . . . . . . . . . . . . . . 1 2 . System Corruption 19 | . . . . . . . . . . . . . . 6 13 . Parts Lost 41 | . 2 4 1 1 . . 5 2 5 . . 4 8 . . 9 Power 10 | . . 1 . . . . 1 1 1 . . . 4 . . 2 Propulsion 14 | . 1 1 1 1 . . 1 1 4 . . 1 1 . . 2 Utility 6 | . . . . . . . 1 . . . . 2 1 . . 2 Weapon 11 | . 1 2 . . . . 2 . . . . 1 2 . . 3 Highest Loss Streak 8 | . 1 3 1 1 . . 4 1 4 . . 1 5 . . 8 To Critical Strikes . | . . . . . . . . . . . . . . . . . Average Backups 11 | 2 11 14 9 10 9 10 9 9 9 7 8 8 14 13 12 16 Power 1 | . 1 1 . . 2 2 1 . . 1 1 1 . . 1 1 Propulsion 2 | 1 6 7 2 2 2 2 1 2 2 . . . 1 3 2 4 Utility 2 | . 2 4 4 3 3 3 2 1 1 1 1 1 2 3 2 3 Weapon 3 | . 1 1 2 2 1 2 3 3 3 4 4 3 6 6 5 5 Tool/Special . | . . . . . . . . . . . . . . . . . Unused Backups 22 | . 1 1 . 3 . 1 4 . . . . 2 1 2 . 7 Power 4 | . . . . 1 . 1 1 . . . . . . . . 1 Propulsion 10 | . 1 1 . 1 . . 1 . . . . . . 2 . 4 Utility 6 | . . . . 1 . . 1 . . . . 1 1 . . 2 Weapon 2 | . . . . . . . 1 . . . . 1 . . . . Tool/Special . | . . . . . . . . . . . . . . . . . Average Slot Usage (%) 87 | . 98 87 98 99 100 100 93 85 87 72 72 79 88 85 74 84 Engine 7 | . 14 4 9 11 11 11 8 7 2 . . 8 7 11 1 . Reactor 1 | . . . . . . . . . . . . . . . 11 12 Treads 5 | . 14 14 . . . . . . . . . . 6 16 13 12 Wheel 4 | . 13 14 . . . . . . . . . 8 9 1 . . Flight 16 | . . . 43 43 44 44 35 35 34 27 27 5 . . . . Device 6 | . 14 14 . . . . . . . . . 7 13 7 14 12 Storage 8 | . 14 14 11 11 11 11 9 9 9 9 9 4 6 6 6 5 Hackware 14 | . . . 10 11 11 11 17 18 22 27 27 23 13 13 10 12 Protection 2 | . . . . . . . 5 5 4 . . 1 5 6 2 5 Energy Gun 6 | . . . . . . . . . . . . 9 19 18 6 13 Ballistic Gun 5 | . 26 19 14 16 22 22 . . . . . . . . . . Slashing Weapon 3 | . . . . . . . 8 9 8 9 9 4 . . 4 2 Peak Build Rating 109 | 7 8 8 14 14 15 15 23 34 34 24 25 63 63 91 98 109 Average Rating 42 | 4 7 7 12 13 14 15 21 24 29 24 24 51 60 75 88 102 On Entrance 30 | . 7 8 8 12 14 15 15 19 31 24 24 25 63 63 91 98 Avg Prop Armor Cover (%) 12 | 16 12 14 . . . . . . . . . . 12 12 . . Naked Turns 4 | . . . . . . . . . . . . . . . . 4 Heaviest Build 112 | 15 31 31 19 19 19 19 19 20 23 13 13 55 59 71 83 112 Greatest Support 160 | 20 20 16 20 20 20 20 20 20 20 15 15 56 56 160 160 160 Greatest Overweight (x) 9 | . 2 3 . 1 . . . . 1 . . 9 2 2 . 1 Average Overweight (x) . | . 1 1 . . . . . . . . . . . . . . Largest Inventory Capacity 20 | 8 15 15 15 10 10 10 10 10 10 10 10 15 15 15 15 20 Average Capacity 12 | 7 14 15 10 10 10 10 10 10 10 10 10 10 15 15 15 19 Most Carried 20 | 3 15 15 14 10 10 10 10 10 10 7 9 15 15 15 15 20 Average Carried 11 | 2 11 14 9 9 9 9 9 9 9 7 8 8 14 14 13 17 Final Capacity 15 | 8 15 15 10 10 10 10 10 10 10 10 10 15 15 15 15 5 Final Carried 15 | 3 14 14 10 10 10 10 8 10 7 7 9 14 15 15 15 5 Class Distribution -------------------- 25% | Scavenger-Sprinter 15% | Scavenger-Tank 14% | Hacker-Sprinter 12% | Mutant 11% | Hacker-Mutant 10% | Scavenger-Mutant 6% | Hacker-Tank Dominant Class ---------------- Mutant | -10/Materials Mutant | -10/Mines Scavenger-Sprinter | -9/Materials Scavenger-Sprinter | -9/Mines Scavenger-Sprinter | -9/Exiles Scavenger-Sprinter | -8/Mines Scavenger-Sprinter | -8/Materials Hacker-Sprinter | -8/Storage Hacker-Sprinter | -8/Garrison Hacker-Sprinter | -8/Recycling Hacker-Sprinter | -8/Scraptown Hacker-Mutant | -6/Factory Hacker-Tank | -6/Extension Scavenger-Tank | -6/Cetus Scavenger-Mutant | -6/Archives Scavenger-Tank | -6/Hub_04(d) Resources | -11 -10 -10 -9 -9 -9 -8 -8 -8 -8 -8 -8 -6 -6 -6 -6 -6 ----------- Run | Yrd Mat Min Mat Min Exi Min Mat Sto Gar Rec Scr Fac Ext Cet Arc Hub Matter Collected 2810 | 282 384 175 13 408 . . 97 181 . 120 . 462 268 215 130 75 Remotely . | . . . . . . . . . . . . . . . . . Salvage Created 3745 | 103 606 120 11 185 . . 117 199 38 . . 462 811 379 202 512 Parts 182 | 6 51 6 3 13 . . 10 11 2 . . 17 23 16 16 8 Haulers Intercepted 2 | . . . . . . . 1 . . . . . . . . 1 Recyclers Shooed 1 | . . 1 . . . . . . . . . . . . . . Parts Field Recycled . | . . . . . . . . . . . . . . . . . Retrieved Matter . | . . . . . . . . . . . . . . . . . Parts Self-Destructed . | . . . . . . . . . . . . . . . . . Prevented . | . . . . . . . . . . . . . . . . . Parts Restored . | . . . . . . . . . . . . . . . . . Kills | -11 -10 -10 -9 -9 -9 -8 -8 -8 -8 -8 -8 -6 -6 -6 -6 -6 ------- Run | Yrd Mat Min Mat Min Exi Min Mat Sto Gar Rec Scr Fac Ext Cet Arc Hub Combat Hostiles Destroyed 81 | . 20 14 . 10 . . 1 3 1 . . 6 13 4 . 9 Melee 2 | . . . . . . . 1 1 . . . . . . . . Guns 54 | . 18 1 . 10 . . . 2 . . . 5 12 3 . 3 AOE 20 | . 2 13 . . . . . . 1 . . . . . . 4 Classes Destroyed 17 | 2 4 2 . . . . 3 . 1 . . 2 1 1 . 1 Worker 2 | . . 1 . . . . . . . . . . . . . 1 Builder 1 | . . . . . . . 1 . . . . . . . . . Tunneler 2 | 1 . . . . . . . . . . . . 1 . . . Hauler 2 | . . . . . . . 1 . . . . . . . . 1 Recycler 5 | 1 . 1 . . . . . 1 . . . 1 1 . . . Operator 9 | . 2 . . . . . . 1 . . . . . . 6 . Watcher 9 | . 1 . 1 . . . . 2 . . . . 2 1 . 2 Swarmer 28 | . 9 3 . 10 . . . 3 . . . . 3 . . . Grunt 16 | . 11 . . . . . . . . . . . 1 . . 4 Duelist 1 | . . . . . . . . . 1 . . . . . . . Protector 2 | . . . . . . . . . . . . . . . . 2 Sentry 12 | . . . . . . . 1 . . . . 3 7 . . 1 Hunter 2 | . . . . . . . . . . . . 1 1 . . . Programmer 3 | . . . . . . . . . . . . 2 . . . 1 Behemoth 1 | . . . . . . . . . . . . . 1 . . . Cetus Guard 4 | . . . . . . . . . . . . . . 4 . . Lightning 1 | . . . . . . . . . . . . . . . . 1 Assembled 11 | . . 11 . . . . . . . . . . . . . . Savage 1 | . . . . . . . . . . . . . . 1 . . Best Kill Streak 16 | 2 4 16 1 6 . . 1 2 1 . . 2 5 3 2 5 Combat Bots Only 14 | . 3 14 . 6 . . 1 2 1 . . 2 4 3 . 5 Max Kills in Single Turn 5 | 1 1 5 1 1 . . 1 1 1 . . 1 1 2 1 3 Gunslinging . | . . . . . . . . . . . . . . . . . Exploded 5 | . 1 5 . . . . . . 1 . . . . . . 1 Melee 1 | . . . . . . . 1 1 . . . . . . . . Uniques/NPCs Destroyed . | . . . . . . . . . . . . . . . . . Combat | -11 -10 -10 -9 -9 -9 -8 -8 -8 -8 -8 -8 -6 -6 -6 -6 -6 -------- Run | Yrd Mat Min Mat Min Exi Min Mat Sto Gar Rec Scr Fac Ext Cet Arc Hub Hostile Shots Fired 767 | . 70 13 33 49 . . 32 35 63 . . 97 234 20 . 121 Missed 277 | . 19 4 17 17 . . 15 13 31 . . 42 90 7 . 22 Hits 490 | . 51 9 16 32 . . 17 22 32 . . 55 144 13 . 99 Melee 2 | . . 2 . . . . . . . . . . . . . . Projectile 488 | . 51 7 16 32 . . 17 22 32 . . 55 144 13 . 99 AOE 1 | . . . . . . . . . . . . . . . . 1 Critical Strikes 12 | . 1 2 1 . . . . . 1 . . . 2 1 . 4 Part Disruptions 2 | . . . . . . . . . . . . 1 . . . 1 Damage Taken 8176 | . 529 276 225 250 . . 405 222 488 . . 506 1119 391 . 3765 Core 1549 | . 110 65 100 32 . . 126 76 184 . . 53 185 40 . 578 Absorbed by Shields 292 | . . . . . . . . . . . . . 224 68 . . Reduced by Siege Mode 286 | . . . . . . . . . . . . . . . . 286 Redirected to Shielding 221 | . . . . . . . 107 10 . . . 16 88 . . . Ignored by Resistances 290 | . . . . . . . . . . . . 28 232 30 . . Regen/Repaired (Parts) 120 | . . . 53 . . . 34 17 . . . 16 . . . . Core Remaining (%) 56 | 100 . 30 . . . 67 . . . . 29 . . . . . Volleys Fired 221 | 2 53 16 10 29 . . 3 4 8 . . 14 42 14 . 26 Largest 3 | 2 2 2 2 2 . . 2 1 1 . . 3 3 3 . 3 Hottest 250 | 40 50 50 100 100 . . 46 25 120 . . 240 245 250 . 250 Shots Fired 439 | 4 106 19 14 47 . . 5 4 8 . . 28 122 37 . 45 Gun 380 | 4 104 10 8 36 . . 5 4 4 . . 28 121 35 . 21 Cannon 13 | . . . . . . . . . 1 . . . . . . 12 Launcher 26 | . 2 9 . . . . . . 3 . . . . . . 12 Special 20 | . . . 6 11 . . . . . . . . 1 2 . . Kinetic 175 | 4 104 10 8 36 . . 5 4 4 . . . . . . . Thermal 235 | . . . 6 11 . . . . 1 . . 28 121 35 . 33 Explosive 26 | . 2 9 . . . . . . 3 . . . . . . 12 Electromagnetic . | . . . . . . . . . . . . . . . . . Robot Hit Streak 15 | 3 8 8 1 8 . . 4 2 4 . . 7 15 11 . 9 Robot Miss Streak 8 | . 6 1 3 2 . . 1 2 . . . 4 7 3 . 8 Penetration Max . | . . . . . . . . . . . . . . . . . Secondary Targets 7 | . 2 . . 2 . . . . . . . . 2 1 . . Max Gunslinging Chain 1 | . 1 . . 1 . . . . . . . . 1 1 . . Shots Hit Robots 324 | 3 60 14 3 23 . . 12 13 2 . . 26 102 28 16 22 Core Hits 278 | 3 34 30 1 10 . . 4 5 4 . . 20 75 19 5 68 Critical Kills 1 | . 1 . . . . . . . . . . . . . . . Critical Parts Destroyed . | . . . . . . . . . . . . . . . . . Critical Strikes 4 | . 1 . . . . . 1 . . . . . . 2 . . Burn 2 | . . . . . . . . . . . . . . 2 . . Destroy 1 | . 1 . . . . . . . . . . . . . . . Sever 1 | . . . . . . . 1 . . . . . . . . . Melee Attacks 131 | . 1 . . . . . 41 38 9 2 . 20 . . 16 4 Impact 3 | . . . . . . . 1 . . . . 2 . . . . Slashing 126 | . . . . . . . 40 38 9 2 . 18 . . 15 4 Piercing . | . . . . . . . . . . . . . . . . . Sneak Attacks 21 | . 1 . . . . . 2 5 . . . 1 . . 12 . Combat Hostiles . | . . . . . . . . . . . . . . . . . Follow-up Attacks . | . . . . . . . . . . . . . . . . . Damage Inflicted 12052 | 48 833 897 49 374 . . 416 675 314 . . 656 2657 672 1166 3295 Guns 5682 | 48 753 95 49 374 . . 39 36 . . . 576 2657 672 . 383 Cannons 110 | . . . . . . . . . . . . . . . . 110 Explosions 3994 | . 76 802 . . . . . . 314 . . . . . . 2802 Melee 2262 | . . . . . . . 377 639 . . . 80 . . 1166 . Ramming 4 | . 4 . . . . . . . . . . . . . . . Kinetic 1394 | 48 753 95 49 374 . . 39 36 . . . . . . . . Thermal 4398 | . . . . . . . . . . . . 576 2657 672 . 493 Explosive 3108 | . 76 802 . . . . . . 314 . . . . . . 1916 Electromagnetic 886 | . . . . . . . . . . . . . . . . 886 Impact . | . . . . . . . . . . . . . . . . . Slashing 2262 | . . . . . . . 377 639 . . . 80 . . 1166 . Piercing . | . . . . . . . . . . . . . . . . . Highest Corruption 27 | . . 1 . . . . . . . . . 1 1 7 19 27 Average Corruption 3 | . . 1 . . . . . . . . . 1 1 5 9 6 Corruption Purged 25 | . . . . . . . . . . . . . . . 20 5 Corruption Blocked . | . . . . . . . . . . . . . . . . . Effects 28 | . . . . . . . . . . . . 1 7 8 8 4 Message Errors 3 | . . . . . . . . . . . . . 1 2 . . Matter Fused 2 | . . . . . . . . . . . . . . 1 . 1 Heat Flow Errors 7 | . . . . . . . . . . . . 1 1 1 3 1 Energy Discharges 4 | . . . . . . . . . . . . . 2 1 . 1 Parts Rejected 1 | . . . . . . . . . . . . . 1 . . . Parts Fused 1 | . . . . . . . . . . . . . 1 . . . Data Loss (minor) 4 | . . . . . . . . . . . . . 1 1 1 1 Data Loss (major) 4 | . . . . . . . . . . . . . . 1 3 . Misfires 1 | . . . . . . . . . . . . . . 1 . . Alerts 1 | . . . . . . . . . . . . . . . 1 . Overload Shots 1 | . . . . . . . . . . . . . . 1 . . Overflow Damage 794 | . 9 29 . . . . . 240 . . . . . . 355 161 Projectiles . | . . . . . . . . . . . . . . . . . Explosions 199 | . 9 29 . . . . . . . . . . . . . 161 Melee 595 | . . . . . . . . 240 . . . . . . 355 . Knockbacks . | . . . . . . . . . . . . . . . . . Impact . | . . . . . . . . . . . . . . . . . Kinetic . | . . . . . . . . . . . . . . . . . Secondary . | . . . . . . . . . . . . . . . . . Self-Inflicted Damage 755 | . 43 62 . . . . . . . . . . . . . 650 Shots 18 | . 2 3 . . . . . . . . . . . . . 13 Rammed 1 | . 1 . . . . . . . . . . . . . . . Targets Rammed 1 | . 1 . . . . . . . . . . . . . . . Kicked . | . . . . . . . . . . . . . . . . . Crushed . | . . . . . . . . . . . . . . . . . Highest Temperature 509 | . 17 . 72 122 . . 11 3 64 . . 148 294 271 170 509 Average Temperature 81 | . 5 . 26 43 . . 4 3 12 . . 34 94 118 83 161 Received Heat Transfer 1459 | . 168 20 93 . . . 99 18 243 . . 123 537 53 . 105 Effects 3 | . . . . . . . . . . . . . . . . 3 Shutdowns 1 | . . . . . . . . . . . . . . . . 1 Interference 2 | . . . . . . . . . . . . . . . . 2 Siege Activations 2 | . . . . . . . . . . . . . . . . 2 Total Turns 26 | . . . . . . . . . . . . . . . . 26 Longest Duration 22 | . . . . . . . . . . . . . . . . 22 Martial Activations . | . . . . . . . . . . . . . . . . . Shielding Activations . | . . . . . . . . . . . . . . . . . Robots Disrupted . | . . . . . . . . . . . . . . . . . Combat Hostiles . | . . . . . . . . . . . . . . . . . Robots Corrupted 2 | . . . . . . . . . . . . . . . . 2 Combat Hostiles 2 | . . . . . . . . . . . . . . . . 2 Parts Fried 15 | . . . . . . . . . . . . . . . . 15 Impact Corruptions . | . . . . . . . . . . . . . . . . . Robots Melted 3 | . . . . . . . . . . . . 1 1 1 . . Combat Hostiles 3 | . . . . . . . . . . . . 1 1 1 . . Parts Melted 32 | . . . . . . . . . . . . 6 21 3 . 2 Heat Transferred 9749 | . . . . . . . . . . . . 1225 5862 1787 . 875 Parts Sabotaged . | . . . . . . . . . . . . . . . . . Parts Stolen . | . . . . . . . . . . . . . . . . . Parts Stripped . | . . . . . . . . . . . . . . . . . Power Chain Reactions . | . . . . . . . . . . . . . . . . . Alert | -11 -10 -10 -9 -9 -9 -8 -8 -8 -8 -8 -8 -6 -6 -6 -6 -6 ------- Run | Yrd Mat Min Mat Min Exi Min Mat Sto Gar Rec Scr Fac Ext Cet Arc Hub Maximum Alert Level 4 | . 1 . 1 1 . . 1 2 4 3 . . 1 . 1 4 Low Security (%) 72 | 100 80 100 44 64 . 100 98 32 . . . 100 86 100 73 58 Level 1 14 | . 19 . 55 35 . . 1 5 5 . . . 13 . 26 31 Level 2 10 | . . . . . . . . 61 68 79 . . . . . . Level 3 2 | . . . . . . . . . 21 20 . . . . . 7 Level 4 . | . . . . . . . . . 4 . . . . . . 2 Level 5 . | . . . . . . . . . . . . . . . . . High Security . | . . . . . . . . . . . . . . . . . Max Security . | . . . . . . . . . . . . . . . . . Peak Influence 1280 | 10 343 182 390 257 . . 249 607 1280 729 . 66 229 163 230 1143 Initial 576 | . . 129 43 96 . . . 104 360 576 . . 28 93 49 24 Average 181 | 1 139 135 169 181 . . 73 384 679 666 . 23 110 52 149 233 Influence Increases 7767 | 10 701 113 570 281 . . 665 896 970 233 . 439 691 294 251 1653 Destroy 0b10 Robot/C 2340 | . 400 60 . 200 . . 140 400 20 . . 120 440 160 80 320 Destroy 0b10 Robot/NC 200 | 10 15 10 5 . . . 10 25 . . . 5 25 10 30 55 Destroy Leader 528 | . 92 10 2 30 . . 52 114 10 . . 60 66 . . 92 Allied During Kill 848 | . . . . . . . 18 197 . . . . 143 106 110 274 Trap Triggered on 0b10 50 | . . . 30 . . . . . . . . 20 . . . . Successful Hack 220 | . 33 . 17 6 . . 28 26 14 6 . 65 15 . . 10 Select Force Hacks 360 | . 60 . 60 . . . 30 . . 210 . . . . . . Disable Machine 720 | . 45 . . 15 . . 15 60 30 . . . . 15 30 510 Anti-Garrison Action 300 | . . . . . . . . . 300 . . . . . . . Destroy Structure 551 | . 26 33 6 . . . 27 14 71 2 . 19 2 3 1 347 Partial Spotted 150 | . . . . . . . 30 45 75 . . . . . . . Lose Combat Pursuer 1500 | . 30 . 450 30 . . 315 15 450 15 . 150 . . . 45 Influence Decreases 6660 | 10 370 332 435 331 197 . 416 591 244 902 611 380 582 339 304 616 Entered New Map 2499 | . . 202 69 151 197 . . 145 194 704 611 . 31 75 74 46 Time Decay 3142 | 10 350 90 246 170 . . 319 246 . 198 . 338 434 161 230 350 Search Patrol Dispatched 100 | . . . 100 . . . . . . . . . . . . . Lost Part 372 | . 20 40 10 10 . . 40 20 50 . . 22 70 . . 90 Lost Ally 547 | . . . 10 . . . 57 180 . . . 20 47 103 . 130 Squads Dispatched 36 | . 5 . 2 . . . 4 4 . . . 10 3 . . 8 Investigation 15 | . 3 . 2 . . . 2 . . . . 6 . . . 2 Extermination 3 | . . . . . . . . . . . . 2 . . . 1 Reinforcement 13 | . 2 . . . . . 2 1 . . . 2 3 . . 3 Assault 2 | . . . . . . . . . . . . . . . . 2 Garrison 3 | . . . . . . . . 3 . . . . . . . . Intercept . | . . . . . . . . . . . . . . . . . Searches Triggered 1 | . . . 1 . . . . . . . . . . . . . Unchained Authorized 1 | . . . . . . . . . . . . 1 . . . . Construction Impeded 2 | . . . . . . . . . . . . . 1 . . 1 Haulers Reinforced . | . . . . . . . . . . . . . . . . . Active Scanning Responses . | . . . . . . . . . . . . . . . . . Cargo Convoy Interrupts . | . . . . . . . . . . . . . . . . . Stealth | -11 -10 -10 -9 -9 -9 -8 -8 -8 -8 -8 -8 -6 -6 -6 -6 -6 --------- Run | Yrd Mat Min Mat Min Exi Min Mat Sto Gar Rec Scr Fac Ext Cet Arc Hub Distress Signals 23 | . 2 . 5 . . . 7 1 . . . 1 3 2 . 2 Communications Jammed . | . . . . . . . . . . . . . . . . . Distress Signals . | . . . . . . . . . . . . . . . . . Times Spotted 300 | . 31 17 39 13 . . 30 23 44 1 . 23 28 12 11 28 Peak Tracking Total 21 | . 5 8 16 4 . . 9 11 21 1 . 5 4 5 . 9 Tactical Retreats 33 | . 2 1 7 1 . . 6 1 5 1 . 7 . . . 2 ECM-based Alert Blocks 7 | . . . . . . . . . . . . . . . . 7 Traps | -11 -10 -10 -9 -9 -9 -8 -8 -8 -8 -8 -8 -6 -6 -6 -6 -6 ------- Run | Yrd Mat Min Mat Min Exi Min Mat Sto Gar Rec Scr Fac Ext Cet Arc Hub Traps Triggered 10 | . 2 2 . . . . 1 . 1 . . . . . . 4 Indirectly 3 | . . . . . . . . . . . . . . . . 3 Trap Hack Attempts 10 | . 1 . 9 . . . . . . . . . . . . . Triggered . | . . . . . . . . . . . . . . . . . Disarmed 6 | . . . . . . . . . . . . . 6 . . . Reprogrammed 7 | . 1 . 3 . . . . . . . . 3 . . . . Reused 5 | . . . 3 . . . . . . . . 2 . . . . Traps Extracted . | . . . . . . . . . . . . . . . . . Installed . | . . . . . . . . . . . . . . . . . Triggered 5 | . . . 3 . . . . . . . . 2 . . . . Machines | -11 -10 -10 -9 -9 -9 -8 -8 -8 -8 -8 -8 -6 -6 -6 -6 -6 ---------- Run | Yrd Mat Min Mat Min Exi Min Mat Sto Gar Rec Scr Fac Ext Cet Arc Hub Machines Disabled 55 | . 3 . . 1 . . 1 4 9 . . . . 1 2 34 Max in Single Turn 32 | . 3 . . 1 . . . 1 2 . . . . 1 . 32 Garrison Access 3 | . . . . . . . . . . . . 2 . . . 1 Garrison Relay 4 | . . . . . . . . . 4 . . . . . . . Phase Generator 1 | . . . . . . . . . 1 . . . . . . . Network Hub 3 | . . . . . . . . . . . . . . . . 3 Machines Repaired . | . . . . . . . . . . . . . . . . . Machines Dismantled . | . . . . . . . . . . . . . . . . . Machines Sabotaged . | . . . . . . . . . . . . . . . . . Overloaded Fab Kills . | . . . . . . . . . . . . . . . . . Hacking | -11 -10 -10 -9 -9 -9 -8 -8 -8 -8 -8 -8 -6 -6 -6 -6 -6 --------- Run | Yrd Mat Min Mat Min Exi Min Mat Sto Gar Rec Scr Fac Ext Cet Arc Hub Machines Accessed 110 | . 8 1 14 1 2 . 15 9 4 13 . 23 12 1 . 7 Terminals 77 | . 6 . 9 1 . . 12 7 4 6 . 13 11 1 . 7 Fabricators 5 | . . . . . . . . . . . . 5 . . . . Repair Stations 5 | . . . 1 . . . 1 1 . . . 2 . . . . Recycling Units 13 | . 2 . 2 . . . 1 . . 7 . . 1 . . . Scanalyzers 4 | . . . 2 . . . 1 . . . . 1 . . . . Garrison Access 3 | . . . . . . . . 1 . . . 2 . . . . Total Hacks 322 | . 25 1 45 2 24 . 50 29 10 25 . 68 24 3 . 16 Successful 227 | . 15 1 33 1 24 . 36 18 3 21 . 54 14 . . 7 Failed 93 | . 10 . 12 1 . . 13 11 7 4 . 13 10 3 . 9 Catastrophic 8 | . 1 . 1 . . . . . 2 . . . . 1 . 3 Database Lockouts 2 | . . . . . . . 1 . . . . 1 . . . . Manual 191 | . 23 . 29 2 1 . 37 16 7 22 . 32 6 1 . 15 Terminals 238 | . 23 . 32 2 . . 40 25 10 18 . 46 23 3 . 16 Fabricators 14 | . . . . . . . . . . . . 14 . . . . Repair Stations 15 | . . . 4 . . . 5 2 . . . 4 . . . . Recycling Units 13 | . 2 . 2 . . . 1 . . 7 . . 1 . . . Scanalyzers 13 | . . . 7 . . . 4 . . . . 2 . . . . Garrison Access 4 | . . . . . . . . 2 . . . 2 . . . . Terminal Hacks 93 | . 5 1 7 . 24 . 8 6 3 4 . 23 11 . . 1 Record 23 | . . . . . 23 . . . . . . . . . . . Part Schematic 7 | . . . . . . . 1 1 . 1 . 4 . . . . Robot Analysis 8 | . 2 . 2 . . . . 1 . 1 . 2 . . . . Prototype ID Bank 11 | . 1 . 1 . . . 1 1 . 2 . 5 . . . . Open Door 10 | . . 1 . . . . . 2 1 . . . 6 . . . Branch Access Points 1 | . 1 . . . . . . . . . . . . . . . Machine Index 1 | . . . 1 . . . . . . . . . . . . . Terminal Index 4 | . 1 . 1 . . . 1 . . . . 1 . . . . Repair Station Index 1 | . . . . . . . . . . . . 1 . . . . Scanalyzer Index 1 | . . . . . . . . . . . . 1 . . . . Garrison Index 1 | . . . . . . . . 1 . . . . . . . . Alert Level 1 | . . . . . . . . . . . . 1 . . . . Locate Traps 2 | . . . . . . . . . . . . 2 . . . . Disarm Traps 1 | . . . . . . . . . . . . . 1 . . . Reprogram Traps 1 | . . . . . . . . . . . . 1 . . . . Recall Reinforcements 4 | . . . . . . . 2 . . . . . 2 . . . Hauler Manifests 1 | . . . . . . . . . . . . 1 . . . . Registered Components 1 | . . . . . . . . . . . . 1 . . . . Registered Prototypes 1 | . . . . . . . . . . . . 1 . . . . Zone Layout 10 | . . . 2 . . . 3 . . . . 2 2 . . 1 Garrison Registry 1 | . . . . . . . . . 1 . . . . . . . Security Stations 1 | . . . . . . . . . 1 . . . . . . . Proto ID Catalog 1 | . . . . . 1 . . . . . . . . . . . Fabricator Hacks 7 | . . . . . . . . . . . . 7 . . . . Load Schematic 5 | . . . . . . . . . . . . 5 . . . . Build 2 | . . . . . . . . . . . . 2 . . . . Repair Station Hacks 12 | . . . 4 . . . 5 2 . . . 1 . . . . Scan Component 7 | . . . 2 . . . 3 1 . . . 1 . . . . Repair 5 | . . . 2 . . . 2 1 . . . . . . . . Recycling Unit Hacks 1 | . . . . . . . . . . . . . 1 . . . Retrieve Components 1 | . . . . . . . . . . . . . 1 . . . Scanalyzer 12 | . . . 7 . . . 3 . . . . 2 . . . . Insert Component 4 | . . . 2 . . . 1 . . . . 1 . . . . Analyze 4 | . . . 2 . . . 1 . . . . 1 . . . . Retrieve Study 4 | . . . 3 . . . 1 . . . . . . . . . Garrison Access Hacks 3 | . . . . . . . . 1 . . . 2 . . . . Unlock Access 1 | . . . . . . . . 1 . . . . . . . . Seal Access 2 | . . . . . . . . . . . . 2 . . . . Unauthorized Hacks 99 | . 10 . 15 1 . . 20 9 . 17 . 19 2 . . 6 Terminals 83 | . 8 . 13 1 . . 19 9 . 10 . 15 2 . . 6 Track 1 | . . . 1 . . . . . . . . . . . . . Assimilate 8 | . . . 1 . . . 2 . . . . 3 . . . 2 Botnet 34 | . 3 . 5 . . . 6 4 . 5 . 6 2 . . 3 Disrupt 3 | . . . 1 1 . . 1 . . . . . . . . . Operators 1 | . . . . . . . . . . . . 1 . . . . Skim 36 | . 5 . 5 . . . 10 5 . 5 . 5 . . . 1 Fabricators 3 | . . . . . . . . . . . . 3 . . . . Prioritize 1 | . . . . . . . . . . . . 1 . . . . Recompile 2 | . . . . . . . . . . . . 2 . . . . Repair Stations 1 | . . . . . . . . . . . . 1 . . . . Patch 1 | . . . . . . . . . . . . 1 . . . . Recycling Units 12 | . 2 . 2 . . . 1 . . 7 . . . . . . Tunnel 12 | . 2 . 2 . . . 1 . . 7 . . . . . . Scanalyzers . | . . . . . . . . . . . . . . . . . Garrison Access . | . . . . . . . . . . . . . . . . . Data Cores Recovered . | . . . . . . . . . . . . . . . . . Used . | . . . . . . . . . . . . . . . . . Hacking Detections 81 | . 6 . 11 1 . . 13 9 3 6 . 19 6 1 . 6 Full Trace Events 7 | . . . 1 . . . . . 1 1 . 3 . . . 1 Feedback Events 1 | . . . . . . . . . . . . 1 . . . . Hackware Fried 1 | . . . . . . . . . . . . 1 . . . . Feedback Blocked . | . . . . . . . . . . . . . . . . . Robot Schematics Acquired . | . . . . . . . . . . . . . . . . . Robots Built . | . . . . . . . . . . . . . . . . . Authchips . | . . . . . . . . . . . . . . . . . Time . | . . . . . . . . . . . . . . . . . Total Robot Build Rating . | . . . . . . . . . . . . . . . . . Part Schematics Acquired 11 | . . . 2 . . . 2 1 . 1 . 5 . . . . Parts Built 4 | . . . . . . . . . . . . 4 . . . . Authchips 2 | . . . . . . . . . . . . 2 . . . . Time 42 | . . . . . . . . . . . . 42 . . . . Total Part Build Rating 16 | . . . . . . . . . . . . 16 . . . . Part Studies Acquired 4 | . . . 3 . . . 1 . . . . . . . . . Parts Repaired 5 | . . . 2 . . . 2 1 . . . . . . . . Time 142 | . . . 52 . . . 58 32 . . . . . . . . Parts Recycled . | . . . . . . . . . . . . . . . . . Recycled Matter . | . . . . . . . . . . . . . . . . . Retrieved Matter . | . . . . . . . . . . . . . . . . . Retrieved Components 9 | . . . . . . . . . . . . . 9 . . . Parts Scanalyzed 4 | . . . 2 . . . 1 . . . . 1 . . . . Part Schematics Acquired 4 | . . . 2 . . . 1 . . . . 1 . . . . Parts Damaged . | . . . . . . . . . . . . . . . . . Bothacking | -11 -10 -10 -9 -9 -9 -8 -8 -8 -8 -8 -8 -6 -6 -6 -6 -6 ------------ Run | Yrd Mat Min Mat Min Exi Min Mat Sto Gar Rec Scr Fac Ext Cet Arc Hub Used RIF Installer . | . . . . . . . . . . . . . . . . . Robots Hacked 2 | . 1 . . . . . . . . . . . . . 1 . Non-combat 2 | . 1 . . . . . . . . . . . . . 1 . Combat . | . . . . . . . . . . . . . . . . . Robot Hacks Applied 2 | . 1 . . . . . . . . . . . . . 1 . find_recycling 1 | . 1 . . . . . . . . . . . . . . . check_alert 1 | . . . . . . . . . . . . . . . 1 . Relay Couplers Released 18 | . . . . . . . . . 16 . . . . . . 2 Machine Destruction 18 | . . . . . . . . . 16 . . . . . . 2 Fabnet Peak Effective % . | . . . . . . . . . . . . . . . . . Robots Rewired 7 | . . . . . . . . . . . . . 7 . . . Allies Hacked . | . . . . . . . . . . . . . . . . . Hacks Repelled . | . . . . . . . . . . . . . . . . . Allies | -11 -10 -10 -9 -9 -9 -8 -8 -8 -8 -8 -8 -6 -6 -6 -6 -6 -------- Run | Yrd Mat Min Mat Min Exi Min Mat Sto Gar Rec Scr Fac Ext Cet Arc Hub Total Allies 34 | . . . 1 3 . . 1 10 . . . 1 13 5 . . Largest Group 10 | . . . 1 3 3 3 3 10 . . . 1 10 10 7 6 Highest-Rated Group 670 | . . . 10 40 40 40 40 173 . . . 10 387 670 670 511 Highest-Rated Ally 159 | . . . 10 16 16 16 16 29 . . . 10 159 159 159 96 Initial Warlord ECA Mod 7 | . . . . . . . . . . 7 7 5 5 5 5 5 Total Orders 5 | . . . . . . . . . . . . 1 . 1 2 1 ROAM 2 | . . . . . . . . . . . . . . 1 1 . FOLLOW 1 | . . . . . . . . . . . . . . . 1 . EXPLORE 2 | . . . . . . . . . . . . 1 . . . 1 Ally Attacks 380 | . . . . . . . 51 107 . . . . 73 59 18 72 Total Damage 9260 | . . . . . . . 603 1410 . . . . 1430 1511 625 3681 Kills 58 | . . . . . . . 6 19 . . . . 10 5 4 14 Allies Corrupted 2 | . . . . . . . . . . . . . . . . 2 Allies Melted 1 | . . . . . . . . . . . . . 1 . . . Intel | -11 -10 -10 -9 -9 -9 -8 -8 -8 -8 -8 -8 -6 -6 -6 -6 -6 ------- Run | Yrd Mat Min Mat Min Exi Min Mat Sto Gar Rec Scr Fac Ext Cet Arc Hub Active Infowar (turns) 1172 | 4 899 187 25 . . . . . . . . . . . . 57 Seismic 1115 | 4 899 187 25 . . . . . . . . . . . . . ECM 57 | . . . . . . . . . . . . . . . . 57 Robot Analysis Total 8 | . 2 . 2 . . . . 1 . 1 . 2 . . . . Derelict Logs Recovered 3 | . . 1 . 2 . . . . . . . . . . . . Drone Launches 4 | . . . . . . . . . . . . 2 . . . 2 Drone Recoveries 2 | . . . . . . . . . . . . 1 . . . 1 Exploration | -11 -10 -10 -9 -9 -9 -8 -8 -8 -8 -8 -8 -6 -6 -6 -6 -6 ------------- Run | Yrd Mat Min Mat Min Exi Min Mat Sto Gar Rec Scr Fac Ext Cet Arc Hub Turns Passed 8691 | 63 899 187 524 354 177 143 925 534 333 416 184 1106 1081 495 488 782 Spaces Moved 9364 | 45 609 109 809 647 361 393 1206 607 588 575 560 1323 652 245 219 416 Core 14 | 3 . . . . . . . . . . . 1 . . . 10 Treads 846 | 1 1 . . . . . . . . . . . . 219 219 406 Legs . | . . . . . . . . . . . . . . . . . Wheels 2016 | 41 608 109 . . . . . . . . . 580 652 26 . . Hover . | . . . . . . . . . . . . . . . . . Flight 6488 | . . . 809 647 361 393 1206 607 588 575 560 742 . . . . Fastest Speed 27 | 50 100 110 31 31 31 31 29 27 27 32 32 29 100 115 160 50 Average Speed 59 | 98 112 113 31 31 31 31 29 27 28 32 32 62 109 156 160 158 Slowest Speed 500 | 160 240 125 31 114 31 31 31 29 105 32 32 500 130 160 160 240 Overloaded Moves . | . . . . . . . . . . . . . . . . . Propulsion Burnouts . | . . . . . . . . . . . . . . . . . Robots Hopped 77 | . . . 23 17 . 5 6 3 12 5 . 6 . . . . Potential Cave-ins . | . . . . . . . . . . . . . . . . . Cave-ins Triggered . | . . . . . . . . . . . . . . . . . Exploration Rate (%) 68 | 4 91 29 62 93 86 79 85 81 78 93 53 48 80 67 89 48 Regions Visited 16 Branch Regions 11 Pre-discovered Areas 20 | . 2 1 5 . 1 . 1 1 . 7 . 2 . . . . Known Exits Taken 10 | . 1 1 1 1 . 1 1 1 . 1 1 1 . . . . Unknown Exits Taken 5 | 1 . . . . 1 . . . . . . . 1 1 1 . Scrap Searched 7 | . . 1 . 2 . 1 . . . . 3 . . . . . Spaces Dug 77 | . . . 4 . . . 27 14 4 2 . 19 . . . 7 Terrain Destroyed 624 | . 26 44 6 . . . 27 14 103 2 . 19 . . . 383 Melee 70 | . . . . . . . 27 14 4 2 . 19 . . . 4 Projectile 13 | . . . 6 . . . . . . . . . . . . 7 AOE 541 | . 26 44 . . . . . . 99 . . . . . . 372 Terrain Rammed . | . . . . . . . . . . . . . . . . . Walls Destroyed . | . . . . . . . . . . . . . . . . . Machines Disabled . | . . . . . . . . . . . . . . . . . Actions | -11 -10 -10 -9 -9 -9 -8 -8 -8 -8 -8 -8 -6 -6 -6 -6 -6 --------- Run | Yrd Mat Min Mat Min Exi Min Mat Sto Gar Rec Scr Fac Ext Cet Arc Hub Total 11788 | 56 713 152 1031 724 425 409 1710 912 721 798 564 1527 899 326 334 487 Wait 1720 | . 22 21 207 40 63 18 440 236 105 227 3 106 123 29 72 8 Move 9207 | 44 608 108 766 616 360 383 1193 601 564 564 559 1312 651 244 218 416 Hop 65 | . . . 19 13 . 4 6 3 11 5 . 4 . . . . Pick Up 75 | 3 13 2 2 6 1 2 6 6 1 . 2 11 5 4 5 6 Fast Attach 77 | 7 3 2 1 1 . . 4 6 1 . . 22 8 8 8 6 Attach 43 | . 2 1 6 . . . 5 3 7 . . 5 5 3 2 4 Detach 12 | . 1 . . . . . . 1 3 . . 2 1 2 . 2 Swap 65 | . 5 1 8 9 . . 4 4 1 . . 7 8 8 3 7 Drop 101 | . 3 1 3 10 1 2 8 10 2 . . 23 7 14 10 7 Fire 221 | 2 53 16 10 29 . . 3 4 8 . . 14 42 14 . 26 Melee 131 | . 1 . . . . . 41 38 9 2 . 20 . . 16 4 Ram 1 | . 1 . . . . . . . . . . . . . . . Kick . | . . . . . . . . . . . . . . . . . Crush . | . . . . . . . . . . . . . . . . . Escape Stasis 9 | . . . . . . . . . 9 . . . . . . . Rewire 50 | . . . . . . . . . . . . . 49 . . 1 Trap 10 | . 1 . 9 . . . . . . . . . . . . . Miscellaneous 1 | . . . . . . . . . . . . 1 . . . . Route ------- -11/Scrapyard -10/Materials (discovered 6 exits: *Mat x3 / *Min x2 / Sub) -10/Mines (discovered 2 exits: *Mat x2) -9/Materials (discovered 4 exits: *Mat x3 / *Min) -9/Mines (discovered 3 exits: *Mat x2 / *Exi) -9/Exiles -8/Mines -8/Materials (discovered 4 exits: *Fac x2 / *Sto x2) -8/Storage (discovered 3 exits: Fac / Rec / Gar) -8/Garrison (discovered 3 exits: *Rec x3) -8/Recycling (discovered 2 exits: *Fac / *Scr) -8/Scraptown (discovered 2 exits: *Fac x2) -6/Factory (discovered 8 exits: Fac x4 / *Low x2 / *Ext x2) -6/Extension (discovered 2 exits: *Fac / *Cet) -6/Cetus (discovered 2 exits: *Fac / [*Arc]) -6/Archives (discovered 3 exits: *Fac / *Hub x2) -6/Hub_04(d) (discovered 1 exit: *Fac) History --------- Turn | Location | Event 25 | -11/Scrapyard | Discovered new exit (range 16) 64 | -11/Scrapyard | Entered Materials 296 | -10/Materials | Discovered new exit (range 14) 300 | -10/Materials | Build established: Mutant 373 | -10/Materials | Discovered new exit (range 15) 439 | -10/Materials | Discovered new exit (range 9) 443 | -10/Materials | Discovered new exit (range 16) 716 | -10/Materials | Learned Materials stockpile data 738 | -10/Materials | Learned location of 2 exits from Subcaves 751 | -10/Materials | Identified exit to Materials 756 | -10/Materials | Learned Storage security intel 757 | -10/Materials | Identified exit to Subcaves 757 | -10/Materials | Learned location of 2 exits from Materials 761 | -10/Materials | Learned 2 Mines zone layouts 777 | -10/Materials | Learned location of 3 exits from Materials 837 | -10/Materials | Learned Storage emergency access door positions 863 | -10/Materials | Identified exit to Mines 963 | -10/Materials | Entered Mines 970 | -10/Mines | Assembled infested the area 975 | -10/Mines | Assisted by a Guerilla fighting off Assembled 1036 | -10/Mines | Discovered exit to Materials (range 8) 1055 | -10/Mines | Discovered exit to Materials (range 5) 1061 | -10/Mines | Destroyed 14 combat bots 1071 | -10/Mines | Lost 3 parts (1p2w) 1076 | -10/Mines | Met a Derelict who couldn't figure out how to use a Trap Extractor 1111 | -10/Mines | Core integrity fell below 50% 1150 | -10/Mines | Entered Materials 1150 | -9/Materials | Evolved 2 slots: Propulsion x2 1151 | -9/Materials | Identified exit to Mines 1151 | -9/Materials | Identified exit to Materials 1439 | -9/Materials | Build established: Scavenger-Sprinter 1468 | -9/Materials | Repaired Flight Unit+? 1470 | -9/Materials | Learned location of 1 exit from Recycling 1516 | -9/Materials | Learned 2 Storage zone layouts 1550 | -9/Materials | Search patrols dispatched 1561 | -9/Materials | Repaired Lgt. Ion Engine+ 1579 | -9/Materials | Learned Storage stockpile data 1598 | -9/Materials | Learned Materials emergency access door positions 1655 | -9/Materials | Learned location of Zion (-6) 1674 | -9/Materials | Entered Mines 1702 | -9/Mines | Identified exit to Exiles 1786 | -9/Mines | Discovered exit to Materials (range 12) 1802 | -9/Mines | Learned 2 Materials zone layouts 1860 | -9/Mines | Discovered exit to Materials (range 11) 2001 | -9/Mines | Assisted by bots powering up and referring to "LRC-V3" 2005 | -9/Mines | Deemed a non-threat by the Exiles lab entrance 2028 | -9/Mines | Entered Exiles 2028 | -9/Exiles | Accompanied by 3 allies 2036 | -9/Exiles | Met 8R-AWN 2041 | -9/Exiles | Met EX-HEX 2053 | -9/Exiles | Met EX-DEC 2060 | -9/Exiles | Visited The Gauntlet 2098 | -9/Exiles | Met EX-BIN 2102 | -9/Exiles | Aligned with FarCom system 2102 | -9/Exiles | Given EX-Vault access code 2110 | -9/Exiles | Opened EX-Vault 2112 | -9/Exiles | Found Gui. Plasma Cannon 2120 | -9/Exiles | Warned to stay clear of 0b10 Research branches 2140 | -9/Exiles | Discovered new exit (range 10) 2205 | -9/Exiles | Left Exiles lab with Gui. Plasma Cannon 2205 | -9/Exiles | Entered Mines 2205 | -8/Mines | Accompanied by 3 allies 2315 | -8/Mines | Discovered exit to Materials (range 8) 2348 | -8/Mines | Entered Materials 2348 | -8/Materials | Accompanied by 3 allies 2348 | -8/Materials | Evolved 2 slots: Utility x2 2349 | -8/Materials | Identified exit to Storage 2350 | -8/Materials | Identified exit to Factory 2473 | -8/Materials | Discovered exit to Storage (range 16) 2497 | -8/Materials | Learned location of 2 exits from Factory 2563 | -8/Materials | Learned 4 Factory zone layouts 2621 | -8/Materials | Learned 2 Storage zone layouts 2667 | -8/Materials | Learned location of 1 exit from Recycling 2703 | -8/Materials | Learned 2 Storage zone layouts 2747 | -8/Materials | Learned Factory stockpile data 2802 | -8/Materials | Learned 8 Factory zone layouts 2974 | -8/Materials | Discovered exit to Factory (range 6) 3117 | -8/Materials | Lost 4 parts (1p1n1u1w) 3133 | -8/Materials | Learned location of 1 exit from Extension 3154 | -8/Materials | Repaired VTOL Module 3174 | -8/Materials | Learned location of 1 exit from Storage 3181 | -8/Materials | Repaired Flight Unit+ 3204 | -8/Materials | Learned Recycling recycling unit intel 3234 | -8/Materials | Learned location of 2 exits from Factory 3235 | -8/Materials | Learned 2 Storage zone layouts 3236 | -8/Materials | Learned Storage trap positions 3237 | -8/Materials | Learned Storage stockpile data 3240 | -8/Materials | Central database locked down 3247 | -8/Materials | Learned Factory scanalyzer intel 3266 | -8/Materials | Learned 2 Lower Caves zone layouts 3273 | -8/Materials | Entered Storage 3275 | -8/Storage | Identified exit to Recycling 3276 | -8/Storage | Loaded intel: 3 trap records 3308 | -8/Storage | Repaired VTOL Module+ 3442 | -8/Storage | Assisted by bots powering up and referring to "LRC-V3" 3526 | -8/Storage | Garrison activated, responded to threat 3626 | -8/Storage | Learned 4 Recycling zone layouts 3662 | -8/Storage | Lost 3 allies 3668 | -8/Storage | Learned Factory interactive machine intel 3699 | -8/Storage | Learned location of 1 exit from Storage 3719 | -8/Storage | Learned 12 Factory zone layouts 3731 | -8/Storage | Learned Factory emergency access door positions 3740 | -8/Storage | Learned Factory interactive machine intel 3807 | -8/Storage | Identified exit to Garrison 3807 | -8/Storage | Entered Garrison 3827 | -8/Garrison | Phase Generator disabled 3846 | -8/Garrison | Garrison Relay disabled 3849 | -8/Garrison | Build established: Hacker-Sprinter 3965 | -8/Garrison | Triggered checkpoint 3972 | -8/Garrison | Discovered exit to Recycling (range 5) 3999 | -8/Garrison | Garrison Relay disabled 4043 | -8/Garrison | Triggered checkpoint 4045 | -8/Garrison | Triggered checkpoint 4048 | -8/Garrison | Discovered exit to Recycling (range 14) 4052 | -8/Garrison | Discovered exit to Recycling (range 7) 4052 | -8/Garrison | Discovered exit to Recycling (range 63) 4052 | -8/Garrison | Discovered exit to Recycling (range 62) 4052 | -8/Garrison | Learned Recycling security intel 4058 | -8/Garrison | Triggered checkpoint 4065 | -8/Garrison | Core integrity fell below 50% 4076 | -8/Garrison | Garrison Relay disabled 4105 | -8/Garrison | Triggered checkpoint 4136 | -8/Garrison | Rescued a captive Derelict 4137 | -8/Garrison | Lost 4 parts (1p3n) 4139 | -8/Garrison | Rescued a captive Derelict 4140 | -8/Garrison | Entered Recycling 4141 | -8/Recycling | Identified exit to Factory 4142 | -8/Recycling | Identified exit to Scraptown 4144 | -8/Recycling | Loaded intel: 7 recycling unit locations 4322 | -8/Recycling | Scanned before Scraplab entrance 4323 | -8/Recycling | Learned Factory garrison access intel 4326 | -8/Recycling | Entered Scraplab 4371 | -8/Recycling | Learned Factory emergency access door positions 4438 | -8/Recycling | Learned location of 2 exits from Factory 4463 | -8/Recycling | Learned 4 Recycling zone layouts 4482 | -8/Recycling | Learned 2 Lower Caves zone layouts 4509 | -8/Recycling | Learned Storage trap positions 4546 | -8/Recycling | Learned Storage stockpile data 4556 | -8/Recycling | Entered Scraptown 4634 | -8/Scraptown | Discovered exit to Factory (range 11) 4672 | -8/Scraptown | Visited Junk Repository 4678 | -8/Scraptown | Visited IN-MT5's Study 4685 | -8/Scraptown | Turned away by UFD registrar 4690 | -8/Scraptown | Visited Symbiants 4694 | -8/Scraptown | Visited SPCMW 4698 | -8/Scraptown | Visited TADAMA 4705 | -8/Scraptown | Visited Cyclists 4714 | -8/Scraptown | Visited Fellowship of the Rings 4740 | -8/Scraptown | Entered Factory 4740 | -6/Factory | Evolved 4 slots: Power x1, Utility x2, Weapon x1 4741 | -6/Factory | Identified exit to Lower Caves 4741 | -6/Factory | Identified exit to Extension 4742 | -6/Factory | Identified exit to Factory 4746 | -6/Factory | Loaded intel: 56 interactive machine locations 4747 | -6/Factory | Loaded intel: 4 scanalyzer locations 4748 | -6/Factory | Loaded intel: 4 garrison access locations 4843 | -6/Factory | Central database locked down 5026 | -6/Factory | Learned location of 2 exits from Factory 5095 | -6/Factory | Fabricated Gatling Laser (x2) 5100 | -6/Factory | Learned Factory scanalyzer intel 5121 | -6/Factory | Fabricated Arm. Huge Wheel (x2) 5122 | -6/Factory | Learned 4 Proximity Caves zone layouts 5132 | -6/Factory | Learned location of Lower Caves (-6) 5133 | -6/Factory | Learned 2 Extension zone layouts 5144 | -6/Factory | Learned Extension trap positions 5165 | -6/Factory | Learned location of 2 exits from Factory 5198 | -6/Factory | Loaded intel: 77 trap records 5239 | -6/Factory | Learned Extension emergency access door positions 5382 | -6/Factory | Build established: Hacker-Mutant 5481 | -6/Factory | Hacking Suite fried by hacking feedback 5567 | -6/Factory | Unchained authorized (GL-D0S) 5846 | -6/Factory | Entered Extension 5849 | -6/Extension | Loaded intel: 28 trap records 5892 | -6/Extension | Rescued a captive Derelict 5893 | -6/Extension | Rescued a captive Derelict 5901 | -6/Extension | Rescued a captive Derelict 6076 | -6/Extension | Rescued a captive Derelict 6115 | -6/Extension | Rescued A7 6121 | -6/Extension | Disrupted transfer network 6133 | -6/Extension | Build established: Hacker-Tank 6303 | -6/Extension | Attached CPS modules to A7. 6339 | -6/Extension | Spotted B-75 Beast 6355 | -6/Extension | Destroyed B-75 Beast 6369 | -6/Extension | Spotted B-75 Beast 6393 | -6/Extension | Allies destroyed B-75 Beast 6439 | -6/Extension | Lost 5 parts (2p1n1u1w) 6798 | -6/Extension | Rescued a captive Derelict 6841 | -6/Extension | Rescued a captive Derelict 6886 | -6/Extension | Discovered new exit (range 6) 6927 | -6/Extension | Entered Cetus 6927 | -6/Cetus | Accompanied by 10 allies (A7) 6932 | -6/Cetus | Acquired a Cetus Manufacturing Module code from A7 6943 | -6/Cetus | Spotted Cetus Guard 6943 | -6/Cetus | Spotted Cetus Guard 6943 | -6/Cetus | Spotted Cetus Guard 6944 | -6/Cetus | Spotted Cetus Guard 6948 | -6/Cetus | Attached CPS modules to 65-8OL(b). 6952 | -6/Cetus | Attached CPS modules to Cetus Guard. 6968 | -6/Cetus | Destroyed Cetus Guard 6969 | -6/Cetus | Allies destroyed Cetus Guard 6975 | -6/Cetus | Destroyed Cetus Guard 6979 | -6/Cetus | Destroyed Cetus Guard 7000 | -6/Cetus | Lost 8 allies 7130 | -6/Cetus | Started Cetus Manufacturing Module 7155 | -6/Cetus | Manufactured an Enhanced Grunt 7180 | -6/Cetus | Manufactured an Enhanced Grunt 7205 | -6/Cetus | Manufactured an Enhanced Grunt 7230 | -6/Cetus | Manufactured an Enhanced Grunt 7237 | -6/Cetus | Escorted A7 to Cetus Mainframe 7255 | -6/Cetus | Manufactured an Enhanced Grunt 7260 | -6/Cetus | Discovered new exit (range 15) 7290 | -6/Cetus | Spotted Cetus Guard 7291 | -6/Cetus | Spotted Cetus Guard 7294 | -6/Cetus | Spotted Cetus Guard 7294 | -6/Cetus | Spotted Cetus Guard 7298 | -6/Cetus | Allies destroyed Cetus Guard 7300 | -6/Cetus | Destroyed Cetus Guard 7313 | -6/Cetus | Allies destroyed Cetus Guard 7314 | -6/Cetus | Allies destroyed Cetus Guard 7316 | -6/Cetus | Build established: Scavenger-Tank 7328 | -6/Cetus | Discovered exit to Factory (range 15) 7336 | -6/Cetus | Met Revision 17 7422 | -6/Cetus | Entered Archives 7422 | -6/Archives | Accompanied by 7 allies (A7) 7427 | -6/Archives | Received a hacking code to weaken MAIN.C 7488 | -6/Archives | Discovered new exit (range 16) 7533 | -6/Archives | System corruption reached 10% 7652 | -6/Archives | Discovered new exit (range 15) 7712 | -6/Archives | Discovered exit to Factory (range 16) 7738 | -6/Archives | Build established: Scavenger-Mutant 7910 | -6/Archives | Entered Hub_04(d) 7910 | -6/Hub_04(d) | Accompanied by 6 allies 8052 | -6/Hub_04(d) | Spotted B-75 Beast 8081 | -6/Hub_04(d) | Allies destroyed B-75 Beast 8380 | -6/Hub_04(d) | Network Hub disabled 8424 | -6/Hub_04(d) | Lost 4 allies 8477 | -6/Hub_04(d) | Discovered exit to Factory (range 13) 8612 | -6/Hub_04(d) | Network Hub disabled 8612 | -6/Hub_04(d) | Network Hub disabled 8642 | -6/Hub_04(d) | Spotted Lightning 8650 | -6/Hub_04(d) | Spotted Lightning 8650 | -6/Hub_04(d) | Spotted Lightning 8653 | -6/Hub_04(d) | Spotted Lightning 8662 | -6/Hub_04(d) | Spotted Lightning 8663 | -6/Hub_04(d) | Spotted Lightning 8670 | -6/Hub_04(d) | Core integrity fell below 50% 8680 | -6/Hub_04(d) | Destroyed Lightning 8688 | -6/Hub_04(d) | Core integrity fell below 20% 8688 | -6/Hub_04(d) | Released all parts (6) 8692 | -6/Hub_04(d) | Destroyed by Lightning with EMDS Last Messages --------------- 08680_ Lightning destroyed. 08680_ Centrium Heavy Treads destroyed. 08681_ Penetrated by EMDS Slug. 08681_ Quantum Reactor destroyed. 08681_ Penetrated by EMDS Slug. 08684_ The unstable cave ceiling collapses. 08684_ EMDS Slug penetrates P-60 Hacker. 08685_ Activated siege mode. 08686_ P-60 Hacker destroyed. 08686_ Penetrated by EMDS Slug. 08686_ Imp. Grenade Launcher destroyed. 08687_ Penetrated by EMDS Slug. 08688_ Released Adv. ECM Suite. 08688_ Released Hcp. Storage Unit. 08688_ Released Imp. Hacking Suite. 08688_ Released Imp. Cooling System. 08688_ Released Centrium Heavy Treads. 08688_ Penetrated by EMDS Slug. 08691_ The unstable cave ceiling collapses. 08691_ Penetrated by EMDS Slug. Map ----- +----------------------------------------------------+ | ??????????????????????????????????????????????#" | | ???????????????????????????????????????????????? | | ????????????????????????????????????????????????## | | ????????????????????????????????????????????????# | | ?????????????????????????????????????????????#### | | ?????????????????????????????????????????????+ | | ?????????????????????????????????????????????#### | | ????????????????????????????????????????????????# | | ???????? ????????????############???????????# | | ??????" ??????????? #???????????# | | # % + ? #???????????# | | # ###+##??# """ #?????####### | | #### ??# ^ #?????# ## | | ?# " ""??# +?????# ## | | ?# " "??# #?????#[ ## | | ?# " "??# ]]] ##??#+# [! ## | | ?# " ""??# ]]] #### # # | | ?# " ??# ]] # # | | ?# " "## ###?# + # | | ?# " ?# ##+### " | | ??#" "" ??# ######## ## # | | ??#"""" ** ??# #??????# " ## ### | | ????? * ??# #??????# " ## #?? | | ????????# # ??# #??????# " ## #?? | | ?????#### #####;####; #??????# ## #?? | | ?????# hh @ #??????# " #######?? | | ?????# ! ####/####;;#??????# " #???????? | | ?????# " =|=h #????# ? #???????? | | ?????# ]/h=! #????# ? #???????? | | ?????##""# # =!*=" " " " " #????#???#???????? | | ??????# # ]/ " " " " " #????????????????? | | ??????# ### #????????????????? | | ??????##??# # ###############????????????????? | | | | | | | | | | | | | | | | | | | | | | | | | | | | | | | | | | | +----------------------------------------------------+ Best States ------------- Heat Dissipation 64 Coolant Potential 65 Energy Generation 45 Energy Capacity 600 Matter Stores 300 Matter Capacity 300 Sight Range 16 Terrain Scan Density 10 ECM Strength 2 Armor Coverage 450 Resistance: KI 20 Resistance: TH 10 Propulsion Shielding 66 Utility Shielding 66 Evasion (%) 64 Targeting Accuracy 6 Recoil Reduction 4 Offensive Hacking 40 Defensive Hacking 10 Authchip Count 2 Item Schematics ----------------- Hacking Suite | -9/Materials | Scanalyzed Flight Unit | -9/Materials | Scanalyzed Surge Thruster | -8/Materials | Hacked Arm. Huge Wheel | -8/Materials | Scanalyzed Imp. Utility Shielding | -8/Storage | Hacked Adv. ECM Suite | -8/Recycling | Hacked Gatling Laser | -6/Factory | Hacked Imp. Shock Absorption System | -6/Factory | Hacked Centrium Wheel | -6/Factory | Hacked CPS Tube | -6/Factory | Scanalyzed Adv. Surge Thruster | -6/Factory | Hacked Robot Schematics ------------------ None Fabricated ------------ Gatling Laser | x2 | -6/Factory | Authchip Arm. Huge Wheel | x2 | -6/Factory | Authchip Repaired ---------- Flight Unit | 15% | -9/Materials Lgt. Ion Engine | 10% | -9/Materials VTOL Module | 4% | -8/Materials Flight Unit | 50% | -8/Materials VTOL Module | 32% | -8/Storage Studied --------- Flight Unit | -9/Materials | Hacked Lgt. Ion Engine | -9/Materials | Hacked Autogun | -9/Materials | Hacked VTOL Module | -8/Materials | Hacked Alien Tech Used ----------------- None Achievements -------------- Physics Hates This One Trick Challenges ------------ None Game ------ Seed BiomechanicalSuperdenseWell Manual? 0 Play Time 02:22:33 Cumulative 557.0 hours Start 2025.10.24 @ 16:30:03 End 2025.10.24 @ 21:59:33 Sessions 3 Manual Loads 0 Difficulty Rogue Special Mode None Game No. 239 Rogue 239 Adventurer 0 Explorer 0 Win Type - Total 40 Types 18/2/6/2/6/1/0/2/0/3 Lore% 96 Gallery% 87 Achievement% 68 Wizard Run 0 Options --------- Layout 1 ASCII 0 Keyboard 0 Movement Numpad Keybinds 0 Fullscreen 1 Font 24/Smallcaps Map View 50x35 Zoom Use 0% Tactical HUD 1 Map Filters NONE Filters NONE Steam 1 RUN: 16b0f242-dab8-465a-8fb4-597e49da2c52